Workbook

Sheet Лист1
A1: 12 день, 2 неделя | Q1: 2022-01-22
A2: № рецептуры | B2: Прием пищи, наименование блюда | C2: Масса | D2: Пищевые вещества | G2: Энергетическая ценность | H2: Витамины | M2: Минеральные вещества
D3: Белки | E3: Жиры | F3: Углеводы | H3: B1 | I3: B2 | J3: A | K3: D | L3: C | M3: Na | N3: K | O3: Ca | P3: Mg | Q3: P | R3: Fe | S3: I | T3: Se | U3: F
C4: г | D4: г | E4: г | F4: г | G4: ккал | H4: мг | I4: мг | J4: мкг рет.экв | K4: мкг | L4: мг | M4: мг | N4: мг | O4: мг | P4: мг | Q4: мг | R4: мг | S4: мкг | T4: мкг | U4: мкг
B5: Буфет | C5: 7-11
A6: 54-21гн-2020 | B6: Какао с молоком | C6: 150 | D6: 3.5 | E6: 2.6 | F6: 9.4 | G6: 75.3 | H6: 0.03 | I6: 0.12 | J6: 12.94 | K6: 0 | L6: 0.51 | M6: 37.46 | N6: 165.25 | O6: 125.76 | P6: 25.74 | Q6: 97.71 | R6: 0.82 | S6: 8.78 | T6: 1.72 | U6: 28.69
A7: Пром. | B7: Сушка простая | C7: 20 | D7: 2.2 | E7: 0.3 | F7: 13.8 | G7: 66.1 | H7: 0.05 | I7: 0.01 | J7: 0 | K7: 0 | L7: 0 | M7: 121 | N7: 37 | O7: 6 | P7: 9.2 | Q7: 24.2 | R7: 0.58 | S7: 0 | T7: 0 | U7: 0
B8: Итого за буфет | C8: =SUM(C6:C7) -> 170 | D8: 5.7 | E8: 2.9 | F8: 23.2 | G8: 141.4 | H8: 0.08 | I8: 0.13 | J8: 12.94 | K8: 0 | L8: 0.51 | M8: 158.46 | N8: 202.25 | O8: 131.76 | P8: 34.94 | Q8: 121.91 | R8: 1.4 | S8: 8.78 | T8: 1.72 | U8: 28.69
B9: Суббота, 2 неделя
B10: Горячий завтрак | C10: 7-11
A11: 54-9з-2020 | B11: Салат из белокочанной капусты с морковью и яблоками с растительным маслом | C11: 60 | D11: 0.8 | E11: 6.1 | F11: 3.6 | G11: 72.5 | H11: 0.02 | I11: 0.02 | J11: 241.63 | K11: 0 | L11: 17.32 | M11: 87.51 | N11: 160.14 | O11: 23.5 | P11: 11.17 | Q11: 18.8 | R11: 0.56 | S11: 9.87 | T11: 0.15 | U11: 10.98
A12: рец.2015г. | B12: Пельмени мясные отварные, полуфабрикат | C12: 180 | D12: 10.34 | E12: 12.175 | F12: 20.34 | G12: 237 | H12: 0.159 | I12: 0 | J12: 0.18 | K12: 0 | L12: 0.491 | M12: 0 | N12: 0 | O12: 79.453 | P12: 10.579 | Q12: 239.018 | R12: 0.01 | S12: 0 | T12: 0 | U12: 0
A13: 54-3гн-2020 | B13: Чай с лимоном и сахаром | C13: 207 | D13: 0.2 | E13: 0.1 | F13: 6.6 | G13: 27.9 | H13: 0 | I13: 0.01 | J13: 0.38 | K13: 0 | L13: 1.16 | M13: 1.26 | N13: 30.23 | O13: 67 | P13: 4.56 | Q13: 8.52 | R13: 0.77 | S13: 0.01 | T13: 0.02 | U13: 0.7
A14: Пром. | B14: Хлеб ржаной | C14: 20 | D14: 1.3 | E14: 0.2 | F14: 6.7 | G14: 34.2 | H14: 0.04 | I14: 0.02 | J14: 0 | K14: 0 | L14: 0 | M14: 122 | N14: 49 | O14: 7 | P14: 9.4 | Q14: 31.6 | R14: 0.78 | S14: 0 | T14: 6.18 | U14: 0
A15: Пром. | B15: Хлеб пшеничный | C15: 30 | D15: 2.3 | E15: 0.2 | F15: 14.8 | G15: 70.3 | H15: 0.03 | I15: 0.01 | J15: 0 | K15: 0 | L15: 0 | M15: 149.7 | N15: 27.9 | O15: 6 | P15: 4.2 | Q15: 19.5 | R15: 0.33 | S15: 0.96 | T15: 1.8 | U15: 4.35
B16: Итого за Завтрак | C16: 497 | D16: =SUM(D11:D15) -> 14.94 | E16: =SUM(E11:E15) -> 18.775 | F16: 52.04 | G16: 441.9 | H16: 0.249 | I16: 0.06 | J16: 242.19 | K16: 0 | L16: 18.971 | M16: 360.47 | N16: 267.27 | O16: 182.953 | P16: 39.909 | Q16: 317.438 | R16: 2.45 | S16: 10.84 | T16: 8.15 | U16: 16.03
B17: Итого за день | C17: =C8+C16 -> 667 | D17: =D8+D16 -> 20.64 | E17: 21.675 | F17: 75.24 | G17: 583.3 | H17: =H8+H16 -> 0.329 | I17: =I8+I16 -> 0.19 | J17: =J8+J16 -> 255.13 | K17: 0 | L17: =L8+L16 -> 19.481 | M17: =M8+M16 -> 518.93 | N17: =N8+N16 -> 469.52 | O17: 314.713 | P17: =P8+P16 -> 74.849 | Q17: =Q8+Q16 -> 439.348 | R17: =R8+R16 -> 3.85 | S17: 19.62 | T17: =T8+T16 -> 9.87 | U17: =U8+U16 -> 44.72
